[Event "Titled Tuesday Blitz March 01 Early 2022"]
[White "Marzaduri, Riccardo"]
[Black "Tasev, Dejan"]
[WhiteFideId "886084"]
[BlackFideId "936618"]
[WhiteElo "2200"]
[BlackElo "2253"]
[Result "0-1"]
[Round "06"]
[TimeControl "180+1"]
[Date "2022.03.01"]
[WhiteClock "0:00:05"]
[BlackClock "0:00:20"]

1. b3 {[%clk 0:02:58]}  Nf6 {[%clk 0:02:59]} 2. Bb2 {[%clk 0:02:58]}  g6 {[%clk 0:02:59]} 3. e3 {[%clk 0:02:57]}  Bg7 {[%clk 0:02:59]} 4. Nf3 {[%clk 0:02:57]}  O-O {[%clk 0:03:00]} 5. Be2 {[%clk 0:02:58]}  b6 {[%clk 0:03:00]} 6. O-O {[%clk 0:02:58]}  Bb7 {[%clk 0:03:00]} 7. d4 {[%clk 0:02:58]}  e6 {[%clk 0:03:00]} 8. c4 {[%clk 0:02:59]}  d6 {[%clk 0:03:00]} 9. Nc3 {[%clk 0:02:58]}  Nbd7 {[%clk 0:03:00]} 10. Qc2 {[%clk 0:02:55]}  a6 {[%clk 0:03:00]} 11. Rad1 {[%clk 0:02:50]}  h6 {[%clk 0:02:59]} 12. Rfe1 {[%clk 0:02:49]}  Qe7 {[%clk 0:02:57]} 13. e4 {[%clk 0:02:50]}  Nh7 {[%clk 0:02:56]} 14. Bd3 {[%clk 0:02:47]}  Rae8 {[%clk 0:02:45]} 15. b4 {[%clk 0:02:45]}  e5 {[%clk 0:02:32]} 16. Nd5 {[%clk 0:02:38]}  Qd8 {[%clk 0:02:27]} 17. dxe5 {[%clk 0:02:28]}  Nxe5 {[%clk 0:02:17]} 18. Nxe5 {[%clk 0:02:28]}  dxe5 {[%clk 0:02:13]} 19. c5 {[%clk 0:02:12]}  b5 {[%clk 0:02:03]} 20. c6 {[%clk 0:02:10]}  Bc8 {[%clk 0:02:03]} 21. a4 {[%clk 0:02:10]}  Ng5 {[%clk 0:01:56]} 22. axb5 {[%clk 0:02:07]}  axb5 {[%clk 0:01:56]} 23. Bxb5 {[%clk 0:02:08]}  Ne6 {[%clk 0:01:56]} 24. Bc4 {[%clk 0:01:28]}  Nd4 {[%clk 0:01:53]} 25. Qd2 {[%clk 0:01:12]}  Kh7 {[%clk 0:01:43]} 26. f4 {[%clk 0:01:09]}  Nxc6 {[%clk 0:01:31]} 27. b5 {[%clk 0:01:00]}  Nd4 {[%clk 0:01:13]} 28. fxe5 {[%clk 0:00:56]}  Ne6 {[%clk 0:01:08]} 29. Ba3 {[%clk 0:00:51]}  Bxe5 {[%clk 0:00:53]} 30. Bxf8 {[%clk 0:00:50]}  Rxf8 {[%clk 0:00:52]} 31. g3 {[%clk 0:00:45]}  Kg7 {[%clk 0:00:43]} 32. Rf1 {[%clk 0:00:38]}  Qd6 {[%clk 0:00:37]} 33. Kh1 {[%clk 0:00:31]}  Ng5 {[%clk 0:00:36]} 34. Nf4 {[%clk 0:00:21]}  Nxe4 {[%clk 0:00:32]} 35. Qxd6 {[%clk 0:00:19]}  Nxd6 {[%clk 0:00:32]} 36. Bd5 {[%clk 0:00:15]}  Nxb5 {[%clk 0:00:30]} 37. Nd3 {[%clk 0:00:15]}  Bd6 {[%clk 0:00:28]} 38. Bg2 {[%clk 0:00:14]}  Nc3 {[%clk 0:00:26]} 39. Rde1 {[%clk 0:00:14]}  Bf5 {[%clk 0:00:24]} 40. Nf2 {[%clk 0:00:13]}  h5 {[%clk 0:00:22]} 41. Ne4 {[%clk 0:00:13]}  Nxe4 {[%clk 0:00:22]} 42. Bxe4 {[%clk 0:00:14]}  Be6 {[%clk 0:00:21]} 43. Bg2 {[%clk 0:00:14]}  Rb8 {[%clk 0:00:21]} 44. Rd1 {[%clk 0:00:11]}  Rb2 {[%clk 0:00:20]} 45. Bd5 {[%clk 0:00:11]}  Bxd5+ {[%clk 0:00:19]} 46. Rxd5 {[%clk 0:00:10]}  h4 {[%clk 0:00:20]} 47. Rd3 {[%clk 0:00:09]}  hxg3 {[%clk 0:00:19]} 48. hxg3 {[%clk 0:00:10]}  Rb4 {[%clk 0:00:19]} 49. Rdf3 {[%clk 0:00:09]}  f5 {[%clk 0:00:19]} 50. Re1 {[%clk 0:00:09]}  Kf6 {[%clk 0:00:19]} 51. Re2 {[%clk 0:00:09]}  Rb1+ {[%clk 0:00:19]} 52. Kg2 {[%clk 0:00:10]}  Rb4 {[%clk 0:00:20]} 53. Rd3 {[%clk 0:00:09]}  Rg4 {[%clk 0:00:19]} 54. Rf2 {[%clk 0:00:07]}  Kg5 {[%clk 0:00:19]} 55. Kh3 {[%clk 0:00:05]}  Re4 {[%clk 0:00:18]} 56. Rdf3 {[%clk 0:00:04]}  Re6 {[%clk 0:00:18]} 57. Rd3 {[%clk 0:00:04]}  Re7 {[%clk 0:00:19]} 58. Kg2 {[%clk 0:00:04]}  Rh7 {[%clk 0:00:19]} 59. Rdf3 {[%clk 0:00:04]}  Kg4 {[%clk 0:00:19]} 60. Rd3 {[%clk 0:00:04]}  Kg5 {[%clk 0:00:19]} 61. Rdf3 {[%clk 0:00:05]}  Rh8 {[%clk 0:00:20]} 62. Rd3 {[%clk 0:00:05]}  Re8 {[%clk 0:00:20]} 63. Rd5 {[%clk 0:00:05]}  Re4 {[%clk 0:00:20]} 64. Rd3 {[%clk 0:00:05]}  Rg4 {[%clk 0:00:20]} 65. Rdf3 {[%clk 0:00:05]}  f4 {[%clk 0:00:20]} 0-1


[Site "https://www.chess.com"]

[Event "Titled Tuesday Blitz March 01 Early 2022"]
[White "Mikhalsky, Vladimir"]
[Black "Agasarov, Benik"]
[WhiteFideId "14144352"]
[BlackFideId "13314823"]
[WhiteElo "2248"]
[BlackElo "2570"]
[Result "1/2-1/2"]
[Round "06"]
[TimeControl "180+1"]
[Date "2022.03.01"]
[WhiteClock "0:00:07"]
[BlackClock "0:01:12"]

1. c4 {[%clk 0:02:58]}  g6 {[%clk 0:02:58]} 2. d4 {[%clk 0:02:57]}  Bg7 {[%clk 0:02:59]} 3. e4 {[%clk 0:02:57]}  c5 {[%clk 0:02:59]} 4. d5 {[%clk 0:02:57]}  d6 {[%clk 0:02:59]} 5. Nc3 {[%clk 0:02:55]}  Bxc3+ {[%clk 0:02:59]} 6. bxc3 {[%clk 0:02:55]}  Qa5 {[%clk 0:03:00]} 7. f3 {[%clk 0:02:44]}  Nf6 {[%clk 0:02:58]} 8. Bh6 {[%clk 0:02:25]}  Bd7 {[%clk 0:02:54]} 9. Qd2 {[%clk 0:02:12]}  Ba4 {[%clk 0:02:50]} 10. Rb1 {[%clk 0:02:06]}  b6 {[%clk 0:02:49]} 11. Bg7 {[%clk 0:01:43]}  Rg8 {[%clk 0:02:47]} 12. Bxf6 {[%clk 0:01:43]}  exf6 {[%clk 0:02:47]} 13. Ne2 {[%clk 0:01:39]}  Nd7 {[%clk 0:02:47]} 14. Qf4 {[%clk 0:01:39]}  Bc2 {[%clk 0:02:33]} 15. Rb2 {[%clk 0:01:36]}  Ne5 {[%clk 0:02:33]} 16. Qxf6 {[%clk 0:01:23]}  Nd3+ {[%clk 0:02:29]} 17. Kd2 {[%clk 0:01:23]}  Nxb2 {[%clk 0:02:29]} 18. Kxc2 {[%clk 0:01:23]}  Nxc4 {[%clk 0:02:28]} 19. Nc1 {[%clk 0:01:19]}  Qa4+ {[%clk 0:02:28]} 20. Kb1 {[%clk 0:01:11]}  Na3+ {[%clk 0:02:18]} 21. Kb2 {[%clk 0:01:08]}  Qc2+ {[%clk 0:02:18]} 22. Kxa3 {[%clk 0:01:08]}  Qxc1+ {[%clk 0:02:18]} 23. Ka4 {[%clk 0:01:00]}  Qc2+ {[%clk 0:02:11]} 24. Kb5 {[%clk 0:00:39]}  a6+ {[%clk 0:01:52]} 25. Kc6 {[%clk 0:00:11]}  Qa4+ {[%clk 0:01:50]} 26. Kxd6 {[%clk 0:00:09]}  Rd8+ {[%clk 0:01:46]} 27. Ke5 {[%clk 0:00:09]}  Qa3 {[%clk 0:01:43]} 28. Kf4 {[%clk 0:00:08]}  Qc1+ {[%clk 0:01:43]} 29. Kg3 {[%clk 0:00:08]}  Qe1+ {[%clk 0:01:43]} 30. Kh3 {[%clk 0:00:08]}  Qd2 {[%clk 0:01:31]} 31. Bxa6 {[%clk 0:00:07]}  Qh6+ {[%clk 0:01:30]} 32. Kg3 {[%clk 0:00:07]}  Rd7 {[%clk 0:01:14]} 33. Bb5 {[%clk 0:00:07]}  Qg7 {[%clk 0:01:12]} 34. Qc6 {[%clk 0:00:07]}  Qe5+ {[%clk 0:01:12]} 35. Kh3 {[%clk 0:00:07]}  Qh5+ {[%clk 0:01:10]} 36. Kg3 {[%clk 0:00:07]}  Qg5+ {[%clk 0:01:10]} 37. Kh3 {[%clk 0:00:07]}  Qh5+ {[%clk 0:01:10]} 38. Kg3 {[%clk 0:00:07]}  Qg5+ {[%clk 0:01:11]} 39. Kh3 {[%clk 0:00:07]}  Qh5+ {[%clk 0:01:12]} 1/2-1/2


[Site "https://www.chess.com"]

[Event "Titled Tuesday Blitz March 01 Early 2022"]
[White "Mirzanurov, Bulat"]
[Black "Valle Maytin, Luis Enrique"]
[WhiteFideId "4184521"]
[BlackFideId "3503666"]
[WhiteElo "2116"]
[BlackElo "2046"]
[Result "1-0"]
[Round "06"]
[TimeControl "180+1"]
[Date "2022.03.01"]
[WhiteClock "0:02:27"]
[BlackClock "0:02:24"]

1. e4 {[%clk 0:03:00]}  c6 {[%clk 0:02:59]} 2. d4 {[%clk 0:02:59]}  d5 {[%clk 0:03:00]} 3. exd5 {[%clk 0:02:58]}  cxd5 {[%clk 0:03:01]} 4. Bd3 {[%clk 0:02:57]}  Nc6 {[%clk 0:03:01]} 5. c3 {[%clk 0:02:56]}  Nf6 {[%clk 0:03:00]} 6. h3 {[%clk 0:02:54]}  e6 {[%clk 0:03:00]} 7. Nf3 {[%clk 0:02:52]}  Bd6 {[%clk 0:02:56]} 8. O-O {[%clk 0:02:51]}  Qc7 {[%clk 0:02:49]} 9. Re1 {[%clk 0:02:44]}  Rb8 {[%clk 0:02:48]} 10. Qe2 {[%clk 0:02:42]}  a6 {[%clk 0:02:28]} 11. Ne5 {[%clk 0:02:36]}  Nd7 {[%clk 0:02:24]} 12. Nxf7 {[%clk 0:02:27]} 1-0


[Site "https://www.chess.com"]

[Event "Titled Tuesday Blitz March 01 Early 2022"]
[White "Mitusov, Semen"]
[Black "Manelyuk, Daniil"]
[WhiteFideId "14151049"]
[BlackFideId "44173920"]
[WhiteElo "2246"]
[BlackElo "2222"]
[Result "0-1"]
[Round "06"]
[TimeControl "180+1"]
[Date "2022.03.01"]
[WhiteClock "0:00:08"]
[BlackClock "0:00:15"]

1. e4 {[%clk 0:03:00]}  e6 {[%clk 0:02:55]} 2. d4 {[%clk 0:02:59]}  d5 {[%clk 0:02:55]} 3. Nc3 {[%clk 0:03:00]}  Bb4 {[%clk 0:02:55]} 4. e5 {[%clk 0:02:59]}  c5 {[%clk 0:02:55]} 5. Bd2 {[%clk 0:02:59]}  Ne7 {[%clk 0:02:50]} 6. Qg4 {[%clk 0:02:48]}  cxd4 {[%clk 0:02:45]} 7. Qxd4 {[%clk 0:02:38]}  Nbc6 {[%clk 0:02:13]} 8. Qg4 {[%clk 0:02:37]}  O-O {[%clk 0:02:02]} 9. Nf3 {[%clk 0:02:33]}  Ng6 {[%clk 0:01:53]} 10. Bd3 {[%clk 0:02:29]}  d4 {[%clk 0:01:50]} 11. Nb1 {[%clk 0:02:15]}  Qa5 {[%clk 0:01:19]} 12. O-O {[%clk 0:01:34]}  Bxd2 {[%clk 0:00:47]} 13. Nbxd2 {[%clk 0:01:24]}  Ngxe5 {[%clk 0:00:46]} 14. Nxe5 {[%clk 0:01:05]}  Nxe5 {[%clk 0:00:45]} 15. Qxd4 {[%clk 0:00:50]}  Rd8 {[%clk 0:00:39]} 16. Qe3 {[%clk 0:00:42]}  Nxd3 {[%clk 0:00:38]} 17. cxd3 {[%clk 0:00:43]}  b6 {[%clk 0:00:38]} 18. Nc4 {[%clk 0:00:31]}  Qd5 {[%clk 0:00:35]} 19. Rad1 {[%clk 0:00:30]}  Ba6 {[%clk 0:00:33]} 20. Qg3 {[%clk 0:00:31]}  Bxc4 {[%clk 0:00:26]} 21. dxc4 {[%clk 0:00:29]}  Qxd1 {[%clk 0:00:26]} 22. h4 {[%clk 0:00:26]}  Qd3 {[%clk 0:00:25]} 23. Qc7 {[%clk 0:00:22]}  Qd7 {[%clk 0:00:19]} 24. Qg3 {[%clk 0:00:21]}  Rac8 {[%clk 0:00:19]} 25. b3 {[%clk 0:00:21]}  Qd3 {[%clk 0:00:19]} 26. Qg4 {[%clk 0:00:20]}  Qd4 {[%clk 0:00:19]} 27. Qg3 {[%clk 0:00:21]}  e5 {[%clk 0:00:19]} 28. h5 {[%clk 0:00:21]}  e4 {[%clk 0:00:20]} 29. h6 {[%clk 0:00:21]}  g6 {[%clk 0:00:20]} 30. Re1 {[%clk 0:00:20]}  f5 {[%clk 0:00:20]} 31. Qg5 {[%clk 0:00:19]}  Rd7 {[%clk 0:00:20]} 32. Kh2 {[%clk 0:00:16]}  Qd2 {[%clk 0:00:19]} 33. Re3 {[%clk 0:00:16]}  Qxf2 {[%clk 0:00:18]} 34. Rg3 {[%clk 0:00:15]}  f4 {[%clk 0:00:16]} 35. Rg4 {[%clk 0:00:15]}  f3 {[%clk 0:00:16]} 36. Qf6 {[%clk 0:00:13]}  Rf8 {[%clk 0:00:12]} 37. Qe6+ {[%clk 0:00:13]}  Rdf7 {[%clk 0:00:12]} 38. Qxe4 {[%clk 0:00:11]}  fxg2 {[%clk 0:00:11]} 39. Rxg2 {[%clk 0:00:12]}  Qf4+ {[%clk 0:00:11]} 40. Qxf4 {[%clk 0:00:12]}  Rxf4 {[%clk 0:00:12]} 41. Kg3 {[%clk 0:00:12]}  R4f5 {[%clk 0:00:12]} 42. Re2 {[%clk 0:00:11]}  Rg5+ {[%clk 0:00:12]} 43. Kh4 {[%clk 0:00:12]}  Rh5+ {[%clk 0:00:12]} 44. Kg4 {[%clk 0:00:12]}  Rxh6 {[%clk 0:00:13]} 45. Re7 {[%clk 0:00:13]}  Rf7 {[%clk 0:00:13]} 46. Re8+ {[%clk 0:00:13]}  Kg7 {[%clk 0:00:14]} 47. Re6 {[%clk 0:00:13]}  Rh1 {[%clk 0:00:14]} 48. Kg3 {[%clk 0:00:13]}  Rg1+ {[%clk 0:00:14]} 49. Kh2 {[%clk 0:00:13]}  Rg5 {[%clk 0:00:14]} 50. Re4 {[%clk 0:00:12]}  h5 {[%clk 0:00:14]} 51. a4 {[%clk 0:00:10]}  Rg4 {[%clk 0:00:14]} 52. Re5 {[%clk 0:00:09]}  Rd4 {[%clk 0:00:13]} 53. a5 {[%clk 0:00:07]}  Rd2+ {[%clk 0:00:13]} 54. Kg3 {[%clk 0:00:07]}  Rd3+ {[%clk 0:00:13]} 55. Kh2 {[%clk 0:00:05]}  Rxb3 {[%clk 0:00:13]} 56. axb6 {[%clk 0:00:04]}  axb6 {[%clk 0:00:13]} 57. Re2 {[%clk 0:00:04]}  Rc7 {[%clk 0:00:12]} 58. Re4 {[%clk 0:00:04]}  Rb4 {[%clk 0:00:12]} 59. Re6 {[%clk 0:00:04]}  Rcxc4 {[%clk 0:00:10]} 60. Re7+ {[%clk 0:00:04]}  Kh6 {[%clk 0:00:11]} 61. Re5 {[%clk 0:00:03]}  h4 {[%clk 0:00:11]} 62. Kh3 {[%clk 0:00:03]}  g5 {[%clk 0:00:12]} 63. Re6+ {[%clk 0:00:03]}  Kh5 {[%clk 0:00:12]} 64. Re3 {[%clk 0:00:03]}  g4+ {[%clk 0:00:11]} 65. Kg2 {[%clk 0:00:03]}  Rc2+ {[%clk 0:00:11]} 66. Kf1 {[%clk 0:00:03]}  Rb1+ {[%clk 0:00:11]} 67. Re1 {[%clk 0:00:04]}  Rxe1+ {[%clk 0:00:11]} 68. Kxe1 {[%clk 0:00:05]}  h3 {[%clk 0:00:12]} 69. Kf1 {[%clk 0:00:06]}  Ra2 {[%clk 0:00:13]} 70. Kg1 {[%clk 0:00:06]}  b5 {[%clk 0:00:13]} 71. Kh1 {[%clk 0:00:06]}  b4 {[%clk 0:00:14]} 72. Kg1 {[%clk 0:00:06]}  b3 {[%clk 0:00:15]} 73. Kh1 {[%clk 0:00:07]}  b2 {[%clk 0:00:15]} 74. Kh2 {[%clk 0:00:08]}  b1=Q+ {[%clk 0:00:15]} 75. Kg3 {[%clk 0:00:08]}  Qb8# {[%clk 0:00:15]} 0-1


[Site "https://www.chess.com"]

[Event "Titled Tuesday Blitz March 01 Early 2022"]
[White "Mohammad Fahad, Rahman"]
[Black "Maatman, Nick"]
[WhiteFideId "10207791"]
[BlackFideId "1040391"]
[WhiteElo "2323"]
[BlackElo "2531"]
[Result "1-0"]
[Round "06"]
[TimeControl "180+1"]
[Date "2022.03.01"]
[WhiteClock "0:00:18"]
[BlackClock "0:00:03"]

1. Nf3 {[%clk 0:02:41]}  Nf6 {[%clk 0:02:59]} 2. b3 {[%clk 0:02:41]}  g6 {[%clk 0:02:59]} 3. Bb2 {[%clk 0:02:41]}  Bg7 {[%clk 0:03:00]} 4. c4 {[%clk 0:02:41]}  O-O {[%clk 0:03:00]} 5. Nc3 {[%clk 0:02:42]}  c5 {[%clk 0:03:00]} 6. g3 {[%clk 0:02:40]}  Nc6 {[%clk 0:02:55]} 7. Bg2 {[%clk 0:02:41]}  b6 {[%clk 0:02:55]} 8. d4 {[%clk 0:02:39]}  cxd4 {[%clk 0:02:54]} 9. Nxd4 {[%clk 0:02:40]}  Bb7 {[%clk 0:02:55]} 10. O-O {[%clk 0:02:37]}  Rc8 {[%clk 0:02:52]} 11. Nc2 {[%clk 0:02:38]}  d6 {[%clk 0:02:48]} 12. e4 {[%clk 0:02:38]}  a6 {[%clk 0:02:47]} 13. Qe2 {[%clk 0:02:36]}  Nd7 {[%clk 0:02:39]} 14. Ne3 {[%clk 0:02:34]}  b5 {[%clk 0:02:22]} 15. cxb5 {[%clk 0:02:16]}  Nd4 {[%clk 0:02:19]} 16. Qd2 {[%clk 0:02:13]}  axb5 {[%clk 0:02:16]} 17. Rfd1 {[%clk 0:02:06]}  e6 {[%clk 0:01:12]} 18. Ne2 {[%clk 0:01:57]}  Nxe2+ {[%clk 0:01:08]} 19. Qxe2 {[%clk 0:01:58]}  Bxb2 {[%clk 0:01:08]} 20. Qxb2 {[%clk 0:01:59]}  Ne5 {[%clk 0:00:58]} 21. Qd4 {[%clk 0:01:50]}  Qf6 {[%clk 0:00:44]} 22. f4 {[%clk 0:01:40]}  Nd7 {[%clk 0:00:31]} 23. Qxd6 {[%clk 0:01:19]}  Qc3 {[%clk 0:00:24]} 24. Ng4 {[%clk 0:01:08]}  Qc5+ {[%clk 0:00:23]} 25. Qxc5 {[%clk 0:00:55]}  Nxc5 {[%clk 0:00:24]} 26. Rac1 {[%clk 0:00:47]}  Kg7 {[%clk 0:00:08]} 27. Nf2 {[%clk 0:00:45]}  Na6 {[%clk 0:00:07]} 28. Bf1 {[%clk 0:00:30]}  Nb4 {[%clk 0:00:07]} 29. a3 {[%clk 0:00:31]}  Nc2 {[%clk 0:00:05]} 30. Bxb5 {[%clk 0:00:19]}  Nxa3 {[%clk 0:00:06]} 31. Bd3 {[%clk 0:00:20]}  Rfd8 {[%clk 0:00:06]} 32. Rxc8 {[%clk 0:00:20]}  Rxc8 {[%clk 0:00:06]} 33. Ra1 {[%clk 0:00:20]}  Rc2 {[%clk 0:00:03]} 34. Rxa3 {[%clk 0:00:18]} 1-0


[Site "https://www.chess.com"]

[Event "Titled Tuesday Blitz March 01 Early 2022"]
[White "Nazari, Arad"]
[Black "Aaditya Dhingra"]
[WhiteFideId "12577324"]
[BlackFideId "25678191"]
[WhiteElo "2120"]
[BlackElo "1789"]
[Result "1-0"]
[Round "06"]
[TimeControl "180+1"]
[Date "2022.03.01"]
[WhiteClock "0:02:17"]
[BlackClock "0:01:33"]

1. e4 {[%clk 0:03:00]}  c5 {[%clk 0:02:59]} 2. Nf3 {[%clk 0:03:00]}  e6 {[%clk 0:02:59]} 3. d4 {[%clk 0:02:59]}  cxd4 {[%clk 0:02:59]} 4. Nxd4 {[%clk 0:02:59]}  Nc6 {[%clk 0:02:59]} 5. Nxc6 {[%clk 0:02:59]}  bxc6 {[%clk 0:02:58]} 6. Bd3 {[%clk 0:02:59]}  d5 {[%clk 0:02:57]} 7. O-O {[%clk 0:02:59]}  Nf6 {[%clk 0:02:57]} 8. Nd2 {[%clk 0:02:59]}  Qb6 {[%clk 0:02:51]} 9. Kh1 {[%clk 0:02:59]}  Ba6 {[%clk 0:02:49]} 10. f4 {[%clk 0:02:57]}  dxe4 {[%clk 0:02:47]} 11. Nxe4 {[%clk 0:02:54]}  Nxe4 {[%clk 0:02:46]} 12. Bxe4 {[%clk 0:02:54]}  Bxf1 {[%clk 0:02:43]} 13. Qxf1 {[%clk 0:02:55]}  Rd8 {[%clk 0:02:34]} 14. b3 {[%clk 0:02:41]}  Bc5 {[%clk 0:02:20]} 15. f5 {[%clk 0:02:33]}  exf5 {[%clk 0:02:16]} 16. Bxf5 {[%clk 0:02:28]}  O-O {[%clk 0:02:12]} 17. Bg5 {[%clk 0:02:28]}  f6 {[%clk 0:02:06]} 18. Qc4+ {[%clk 0:02:28]}  Kh8 {[%clk 0:02:03]} 19. Qh4 {[%clk 0:02:28]}  g6 {[%clk 0:01:39]} 20. Bxf6+ {[%clk 0:02:23]}  Kg8 {[%clk 0:01:34]} 21. Be6+ {[%clk 0:02:23]}  Rf7 {[%clk 0:01:35]} 22. Bxd8 {[%clk 0:02:22]}  Qb5 {[%clk 0:01:33]} 23. Qf6 {[%clk 0:02:17]} 1-0


[Site "https://www.chess.com"]

[Event "Titled Tuesday Blitz March 01 Early 2022"]
[White "Niyazgulova, Marina"]
[Black "parintele_chess"]
[WhiteFideId "24142573"]
[WhiteElo "2075"]
[BlackElo "2209"]
[Result "1-0"]
[Round "06"]
[TimeControl "180+1"]
[Date "2022.03.01"]
[WhiteClock "0:01:42"]
[BlackClock "0:00:13"]

1. d4 {[%clk 0:03:00]}  d5 {[%clk 0:01:37]} 2. Nf3 {[%clk 0:02:59]}  Nf6 {[%clk 0:01:36]} 3. c4 {[%clk 0:02:59]}  e6 {[%clk 0:01:36]} 4. Nc3 {[%clk 0:02:59]}  dxc4 {[%clk 0:01:35]} 5. a4 {[%clk 0:02:57]}  c5 {[%clk 0:01:26]} 6. e3 {[%clk 0:02:57]}  Nc6 {[%clk 0:01:24]} 7. Bxc4 {[%clk 0:02:56]}  cxd4 {[%clk 0:01:23]} 8. exd4 {[%clk 0:02:54]}  Be7 {[%clk 0:01:21]} 9. O-O {[%clk 0:02:54]}  O-O {[%clk 0:01:21]} 10. Bg5 {[%clk 0:02:45]}  Nd5 {[%clk 0:01:18]} 11. Bxe7 {[%clk 0:02:44]}  Ncxe7 {[%clk 0:01:14]} 12. Qd2 {[%clk 0:02:44]}  b6 {[%clk 0:01:00]} 13. Ne5 {[%clk 0:02:39]}  Bb7 {[%clk 0:00:56]} 14. Rad1 {[%clk 0:02:29]}  Nxc3 {[%clk 0:00:43]} 15. bxc3 {[%clk 0:02:28]}  Nd5 {[%clk 0:00:33]} 16. Bd3 {[%clk 0:02:25]}  h6 {[%clk 0:00:28]} 17. Bb1 {[%clk 0:02:21]}  Nf6 {[%clk 0:00:22]} 18. f3 {[%clk 0:02:14]}  Nd7 {[%clk 0:00:17]} 19. Qd3 {[%clk 0:02:09]}  f5 {[%clk 0:00:17]} 20. Ng6 {[%clk 0:01:42]}  Rf6 {[%clk 0:00:13]} 21. Nf4 {[%clk 0:01:42]} 1-0


[Site "https://www.chess.com"]

[Event "Titled Tuesday Blitz March 01 Early 2022"]
[White "Nozdrachev, Leonid"]
[Black "Sarkar, Justin"]
[WhiteFideId "24113433"]
[BlackFideId "2010011"]
[WhiteElo "2124"]
[BlackElo "2038"]
[Result "1-0"]
[Round "06"]
[TimeControl "180+1"]
[Date "2022.03.01"]
[WhiteClock "0:02:03"]
[BlackClock "0:01:10"]

1. e4 {[%clk 0:02:59]}  c5 {[%clk 0:02:46]} 2. b4 {[%clk 0:02:57]}  cxb4 {[%clk 0:02:42]} 3. Nf3 {[%clk 0:02:55]}  Nc6 {[%clk 0:02:36]} 4. a3 {[%clk 0:02:54]}  b3 {[%clk 0:02:21]} 5. cxb3 {[%clk 0:02:51]}  d5 {[%clk 0:02:20]} 6. exd5 {[%clk 0:02:49]}  Qxd5 {[%clk 0:02:19]} 7. Nc3 {[%clk 0:02:50]}  Qd6 {[%clk 0:02:10]} 8. d4 {[%clk 0:02:49]}  e6 {[%clk 0:01:47]} 9. Nb5 {[%clk 0:02:45]}  Qb8 {[%clk 0:01:16]} 10. g3 {[%clk 0:02:09]}  a6 {[%clk 0:01:14]} 11. Bf4 {[%clk 0:02:07]}  e5 {[%clk 0:01:10]} 12. Nxe5 {[%clk 0:02:03]} 1-0


[Site "https://www.chess.com"]

[Event "Titled Tuesday Blitz March 01 Early 2022"]
[White "Omariev, Maksim"]
[Black "Barbashin, Igor"]
[WhiteFideId "4193423"]
[BlackFideId "4155718"]
[WhiteElo "2437"]
[BlackElo "2138"]
[Result "0-1"]
[Round "06"]
[TimeControl "180+1"]
[Date "2022.03.01"]
[WhiteClock "0:00:03"]
[BlackClock "0:01:17"]

1. h4 {[%clk 0:03:00]}  c5 {[%clk 0:02:58]} 2. h5 {[%clk 0:03:01]}  Nc6 {[%clk 0:02:58]} 3. c3 {[%clk 0:03:02]}  h6 {[%clk 0:02:57]} 4. d4 {[%clk 0:03:02]}  d5 {[%clk 0:02:56]} 5. Nf3 {[%clk 0:03:00]}  Nf6 {[%clk 0:02:55]} 6. dxc5 {[%clk 0:02:58]}  a5 {[%clk 0:02:53]} 7. Bf4 {[%clk 0:02:52]}  e6 {[%clk 0:02:51]} 8. Na3 {[%clk 0:02:52]}  Bxc5 {[%clk 0:02:50]} 9. Nb5 {[%clk 0:02:53]}  Qb6 {[%clk 0:02:48]} 10. Nc7+ {[%clk 0:02:39]}  Ke7 {[%clk 0:02:47]} 11. e3 {[%clk 0:02:15]}  Qxb2 {[%clk 0:02:43]} 12. Nxa8 {[%clk 0:02:09]}  Ne4 {[%clk 0:02:37]} 13. Nd2 {[%clk 0:01:05]}  Nxd2 {[%clk 0:02:37]} 14. Bd3 {[%clk 0:00:56]}  Qxc3 {[%clk 0:02:30]} 15. Ke2 {[%clk 0:00:55]}  Ne4 {[%clk 0:02:09]} 16. Rc1 {[%clk 0:00:51]}  Qb2+ {[%clk 0:01:54]} 17. Rc2 {[%clk 0:00:51]}  Nc3+ {[%clk 0:01:53]} 18. Kf3 {[%clk 0:00:10]}  Nxd1 {[%clk 0:01:52]} 19. Rxd1 {[%clk 0:00:07]}  Qa3 {[%clk 0:01:46]} 20. Ke2 {[%clk 0:00:02]}  Bd6 {[%clk 0:01:40]} 21. Bxd6+ {[%clk 0:00:02]}  Qxd6 {[%clk 0:01:36]} 22. Nb6 {[%clk 0:00:03]}  Bd7 {[%clk 0:01:34]} 23. Nxd7 {[%clk 0:00:02]}  Qxd7 {[%clk 0:01:33]} 24. a3 {[%clk 0:00:03]}  Rc8 {[%clk 0:01:31]} 25. Rb1 {[%clk 0:00:04]}  Rc7 {[%clk 0:01:21]} 26. Rcb2 {[%clk 0:00:04]}  Ne5 {[%clk 0:01:19]} 27. Bb5 {[%clk 0:00:04]}  Qd6 {[%clk 0:01:18]} 28. f4 {[%clk 0:00:04]}  Nc4 {[%clk 0:01:17]} 29. a4 {[%clk 0:00:03]} 0-1


[Site "https://www.chess.com"]

[Event "Titled Tuesday Blitz March 01 Early 2022"]
[White "Ooi, Zhi Yang"]
[Black "Matinian, Nikita"]
[WhiteFideId "5709270"]
[BlackFideId "24129100"]
[WhiteElo "1802"]
[BlackElo "2422"]
[Result "0-1"]
[Round "06"]
[TimeControl "180+1"]
[Date "2022.03.01"]
[WhiteClock "0:01:11"]
[BlackClock "0:01:50"]

1. d4 {[%clk 0:02:29]}  Nf6 {[%clk 0:02:59]} 2. Nf3 {[%clk 0:02:28]}  g6 {[%clk 0:02:59]} 3. Bg5 {[%clk 0:02:28]}  d5 {[%clk 0:02:57]} 4. Nbd2 {[%clk 0:02:28]}  Bg7 {[%clk 0:02:57]} 5. c3 {[%clk 0:02:28]}  O-O {[%clk 0:02:58]} 6. e3 {[%clk 0:02:29]}  Nbd7 {[%clk 0:02:58]} 7. Be2 {[%clk 0:02:29]}  h6 {[%clk 0:02:56]} 8. Bh4 {[%clk 0:02:28]}  c5 {[%clk 0:02:54]} 9. O-O {[%clk 0:02:28]}  b6 {[%clk 0:02:55]} 10. a4 {[%clk 0:02:28]}  a5 {[%clk 0:02:53]} 11. Bb5 {[%clk 0:02:27]}  Bb7 {[%clk 0:02:50]} 12. Qe2 {[%clk 0:02:24]}  e6 {[%clk 0:02:47]} 13. Rfd1 {[%clk 0:02:22]}  g5 {[%clk 0:02:43]} 14. Bg3 {[%clk 0:02:21]}  Qe7 {[%clk 0:02:42]} 15. Ne5 {[%clk 0:02:19]}  Nxe5 {[%clk 0:02:40]} 16. Bxe5 {[%clk 0:02:20]}  Rac8 {[%clk 0:02:34]} 17. f4 {[%clk 0:02:20]}  Nh7 {[%clk 0:02:31]} 18. Bxg7 {[%clk 0:02:18]}  Kxg7 {[%clk 0:02:32]} 19. Nf3 {[%clk 0:02:15]}  f6 {[%clk 0:02:32]} 20. Rf1 {[%clk 0:02:08]}  g4 {[%clk 0:02:28]} 21. Nh4 {[%clk 0:02:03]}  f5 {[%clk 0:02:28]} 22. g3 {[%clk 0:02:02]}  Nf6 {[%clk 0:02:27]} 23. Ng2 {[%clk 0:02:00]}  c4 {[%clk 0:02:26]} 24. Nh4 {[%clk 0:01:48]}  Bc6 {[%clk 0:02:26]} 25. Qc2 {[%clk 0:01:46]}  Bxb5 {[%clk 0:02:23]} 26. axb5 {[%clk 0:01:47]}  Qd7 {[%clk 0:02:23]} 27. Qa4 {[%clk 0:01:46]}  Ne4 {[%clk 0:02:23]} 28. Rfc1 {[%clk 0:01:40]}  Nd6 {[%clk 0:02:23]} 29. h3 {[%clk 0:01:32]}  h5 {[%clk 0:02:23]} 30. hxg4 {[%clk 0:01:32]}  hxg4 {[%clk 0:02:24]} 31. Kg2 {[%clk 0:01:30]}  Qxb5 {[%clk 0:02:23]} 32. Qc2 {[%clk 0:01:30]}  Rh8 {[%clk 0:02:20]} 33. Rh1 {[%clk 0:01:30]}  Ne4 {[%clk 0:02:21]} 34. Rh2 {[%clk 0:01:25]}  Qd7 {[%clk 0:02:11]} 35. Rah1 {[%clk 0:01:25]}  b5 {[%clk 0:02:05]} 36. Ra1 {[%clk 0:01:24]}  Ra8 {[%clk 0:02:03]} 37. Rah1 {[%clk 0:01:23]}  b4 {[%clk 0:02:03]} 38. Ra1 {[%clk 0:01:16]}  Qb5 {[%clk 0:01:53]} 39. Rah1 {[%clk 0:01:15]}  bxc3 {[%clk 0:01:52]} 40. bxc3 {[%clk 0:01:14]}  Qb3 {[%clk 0:01:51]} 41. Qxb3 {[%clk 0:01:12]}  cxb3 {[%clk 0:01:52]} 42. Ra1 {[%clk 0:01:13]}  a4 {[%clk 0:01:50]} 43. Kg1 {[%clk 0:01:11]}  a3 {[%clk 0:01:50]} 0-1


[Site "https://www.chess.com"]